bitfinex-derivatives/quotes_SOLF0:USTF0_20240911
["timestamp","ask_amount","ask_price","bid_price","bid_amount"]
[1726037002021,3.7821,132.2,132.13,6.04954782]
[1726037002222,3.7821,132.2,132.14,6.04954782]
[1726037002427,3.7823,132.19,132.12,5.02245375]
[1726037002628,3.7823,132.19,132.12,1.3118]
[1726037002930,3.7823,132.19,132.13,6.04966653]
[1726037003123,3.7823,132.19,132.14,6.04966653]
[1726037003318,3.7822,132.19,132.12,5.18097372]
[1726037003524,3.7822,132.19,132.13,6.04953905]
[1726037003724,3.7822,132.19,132.14,6.04953905]
[1726037003931,3.7822,132.19,132.12,1.3118]
[1726037004227,3.7822,132.19,132.13,6.04922812]
[1726037004429,3.7822,132.19,132.14,6.04922812]
[1726037004629,3.7822,132.19,132.12,1.3118]
[1726037004829,3.7825,132.18,132.13,6.04916255]
[1726037005028,3.7825,132.18,132.13,3.81545096]
[1726037005223,3.7825,132.18,132.12,1.3118]
[1726037005530,3.7825,132.18,132.13,6.05026089]
[1726037005726,3.7825,132.18,132.12,5.13746585]
[1726037005923,3.7825,132.18,132.12,1.3118]
[1726037006123,3.7825,132.18,132.13,6.05022963]
[1726037006330,3.7825,132.18,132.13,3.71443704]
[1726037006539,3.7825,132.18,132.12,1.3118]
[1726037006826,3.7825,132.18,132.13,6.0503736]
[1726037007025,3.7825,132.18,132.13,3.79161622]
[1726037007218,3.7825,132.18,132.12,1.3118]
[1726037007422,3.7825,132.18,132.13,6.04972041]
[1726037007618,3.7825,132.18,132.12,5.07580007]
[1726037007828,3.7825,132.18,132.13,6.04968027]
[1726037008029,3.7825,132.18,132.12,5.07580007]
[1726037008229,3.7825,132.18,132.13,6.05037614]
[1726037008430,3.7825,132.18,132.12,5.07580007]
[1726037009532,3.7825,132.18,132.13,6.04976953]
[1726037009735,3.7825,132.18,132.12,5.07580007]
[1726037012127,7.30125425,132.28,132.12,1.3118]
[1726037012331,3.81649307,132.28,132.12,5.11770011]
[1726037012627,224.0,132.29,132.12,5.11770011]
[1726037012628,339.15153284,132.27,132.12,1.3118]
[1726037012833,1.15166128,132.26,132.12,5.13585947]
[1726037013132,88.58515603,132.26,132.12,5.13585947]
[1726037013336,5.19376579,132.25,132.12,8.91985947]
[1726037013529,4.042,132.25,132.12,8.91985947]
[1726037013830,1.15187386,132.24,132.12,5.13585947]
[1726037014030,338.0,132.23,132.12,5.13585947]
[1726037014230,338.0,132.23,132.12,3.82405947]
[1726037014928,338.0,132.22,132.1,7.38058621]
[1726037015124,338.0,132.24,132.1,9.90324303]
[1726037015328,1.15205677,132.23,132.1,3.84865682]
[1726037015543,1.15205677,132.23,132.03,6.05458621]
[1726037015837,338.0,132.22,132.04,6.05458621]
[1726037016037,338.0,132.22,132.05,6.05458621]
[1726037016237,338.0,132.22,132.06,7.35498621]
[1726037016537,338.0,132.22,132.07,6.05458621]
[1726037016735,338.0,132.22,132.08,6.05458621]
[1726037016940,338.0,132.22,132.09,6.05458621]
[1726037017234,338.0,132.21,132.08,6.05458621]
[1726037017439,338.0,132.21,132.07,3.8047673]
[1726037017440,4.1469,132.2,132.07,3.8047673]
[1726037017636,4.1469,132.2,132.08,6.05678943]
[1726037017840,4.1469,132.2,132.09,6.05678943]
[1726037018238,4.1469,132.2,132.1,3.7846]
[1726037018641,4.1469,132.2,132.09,6.05678943]
[1726037019036,4.1469,132.2,132.11,3.7845]
[1726037020141,4.1469,132.2,132.12,3.7842]
[1726037021343,4.1469,132.2,132.11,3.7843]
[1726037022237,342.1469,132.2,132.11,3.7843]
[1726037024538,342.1469,132.2,132.12,3.7841]
[1726037024735,342.1469,132.2,132.08,3.77317899]
[1726037024935,342.1469,132.2,132.09,6.0578531]
[1726037025154,342.1469,132.2,132.1,3.70241428]
[1726037025345,342.1469,132.2,132.08,6.0578531]
[1726037025535,342.1469,132.2,132.06,5.03573641]
[1726037025740,342.1469,132.2,132.07,6.05842583]
[1726037025940,342.1469,132.2,132.08,6.05842583]
[1726037026140,342.1469,132.2,132.06,5.03573641]
[1726037026347,342.1469,132.2,132.07,8.77993465]
[1726037026539,342.1469,132.2,132.08,6.05563465]
[1726037026743,342.1469,132.2,132.09,6.05563465]
[1726037027038,342.1469,132.2,132.1,6.05563465]
[1726037027239,342.1469,132.2,132.11,6.05563465]
[1726037027451,342.1469,132.2,132.07,2.7243]
[1726037027644,342.1469,132.2,132.14,3.7835]
[1726037027842,342.1469,132.2,132.14,7.60426899]
[1726037028143,4.1469,132.2,132.14,7.60426899]
[1726037029345,4.1469,132.2,132.15,3.7833]
[1726037031442,4.1469,132.2,132.16,3.783]
[1726037035544,4.1469,132.2,132.09,6.05118335]
[1726037035545,7.91004793,132.2,132.14,3.7835]
[1726037035847,7.91004793,132.2,132.11,6.05118335]
[1726037036050,7.91004793,132.2,132.07,10.2952]
[1726037036240,7.91004793,132.2,132.08,6.05300298]
[1726037036443,7.91004793,132.2,132.09,6.05300298]
[1726037036844,7.91004793,132.2,132.07,10.2952]
[1726037037054,7.91004793,132.2,132.1,6.05337658]
[1726037037447,7.91004793,132.2,132.11,6.05337658]
[1726037037643,7.91004793,132.2,132.07,10.2952]
[1726037037848,7.91004793,132.2,132.08,6.05318453]
[1726037038057,7.91004793,132.2,132.09,6.05318453]
[1726037038361,7.91004793,132.2,132.1,6.05318453]
[1726037038555,7.91004793,132.2,132.11,6.05318453]
[1726037038746,7.91004793,132.2,132.07,2.7243]
[1726037038947,7.91004793,132.2,132.08,6.05341525]
[1726037039157,7.91004793,132.2,132.09,6.05341525]
[1726037039355,7.91004793,132.2,132.1,6.05341525]
[1726037039553,7.91004793,132.2,132.11,6.05341525]
[1726037039751,7.91004793,132.2,132.07,2.7243]
[1726037039955,7.91004793,132.2,132.08,6.0531765]
[1726037040170,7.91004793,132.2,132.07,2.7243]
[1726037040363,7.91004793,132.2,132.09,6.05313637]
[1726037040657,7.91004793,132.2,132.1,6.05313637]
[1726037040959,7.91004793,132.2,132.11,6.05313637]
[1726037041158,7.91004793,132.2,132.08,6.05488465]
[1726037041455,7.91004793,132.2,132.09,6.05488465]
[1726037041658,7.91004793,132.2,132.1,6.05488465]
[1726037041859,7.91004793,132.2,132.11,6.05488465]
[1726037042055,7.91004793,132.2,132.12,6.05488465]
[1726037042256,7.91004793,132.2,132.07,2.7243]
[1726037042555,7.91004793,132.2,132.08,6.05361909]
[1726037042752,7.91004793,132.2,132.09,6.05361909]
[1726037042952,7.91004793,132.2,132.1,6.05361909]
[1726037043149,7.91004793,132.2,132.11,6.05361909]
[1726037043451,7.91004793,132.2,132.12,6.05361909]
[1726037043651,7.91004793,132.2,132.07,2.7243]
[1726037043850,7.91004793,132.2,132.08,6.053421]
[1726037044055,7.91004793,132.2,132.09,6.053421]
[1726037044249,7.91004793,132.2,132.1,6.053421]
[1726037044464,7.91004793,132.2,132.11,6.05422872]
[1726037044658,7.91004793,132.2,132.12,6.05422872]
[1726037044856,7.91004793,132.2,132.07,2.7243]
[1726037045056,7.91004793,132.2,132.08,6.05427624]
[1726037045257,7.91004793,132.2,132.09,6.05427624]
[1726037045458,7.91004793,132.2,132.1,6.05427624]
[1726037045654,7.91004793,132.2,132.11,6.05427624]
[1726037045860,7.91004793,132.2,132.06,3.73533641]
[1726037046061,7.91004793,132.2,132.07,6.05682761]
[1726037046363,338.0,132.19,132.08,6.05682761]
[1726037046662,338.0,132.19,132.09,6.05682761]
[1726037046861,338.0,132.19,132.1,6.05682761]
[1726037047058,338.0,132.19,132.0,4.0849]
[1726037047263,7.91004793,132.2,132.01,6.05651131]
[1726037047465,7.91004793,132.2,132.02,6.05651131]
[1726037047767,7.91004793,132.2,132.03,6.05651131]
[1726037047962,7.91004793,132.2,132.04,6.05651131]
[1726037048165,7.91004793,132.2,132.05,6.05651131]
[1726037048468,7.91004793,132.2,132.06,6.05651131]
[1726037048657,7.91004793,132.2,132.0,4.0849]
[1726037048658,7.91004793,132.2,132.07,6.05651131]
[1726037048857,7.91004793,132.2,132.07,3.75198728]
[1726037049165,7.91004793,132.2,132.08,6.05623851]
[1726037049354,7.91004793,132.2,132.09,6.05623851]
[1726037049560,7.91004793,132.2,132.1,6.05623851]
[1726037049754,7.91004793,132.2,132.0,4.0849]
[1726037049965,7.91004793,132.2,132.01,6.05623804]
[1726037050160,7.91004793,132.2,132.02,6.05623804]
[1726037050359,7.91004793,132.2,132.03,6.05623804]
[1726037050563,7.91004793,132.2,132.04,7.47373804]
[1726037050762,7.91004793,132.2,132.05,6.05623804]
[1726037050965,7.91004793,132.2,132.06,6.05623804]
[1726037051158,7.91004793,132.2,132.07,6.05623804]
[1726037051360,7.91004793,132.2,132.08,6.05623804]
[1726037051561,7.91004793,132.2,132.09,6.05623804]
[1726037051756,7.91004793,132.2,132.1,6.05623804]
[1726037052064,7.91004793,132.2,132.07,3.87205787]
[1726037052265,7.91004793,132.2,132.08,6.05624141]
[1726037052464,7.91004793,132.2,132.09,6.05624141]
[1726037052664,7.91004793,132.2,132.1,6.05624141]
[1726037052966,7.91004793,132.2,132.04,1.4175]
[1726037053168,7.91004793,132.2,132.05,6.05690245]
[1726037053374,7.91004793,132.2,132.06,6.05690245]
[1726037053560,7.91004793,132.2,132.07,6.05690245]
[1726037053760,7.91004793,132.2,132.08,6.05690245]
[1726037053960,7.91004793,132.2,132.09,6.05690245]
[1726037054166,7.91004793,132.2,132.08,3.70050722]
[1726037054366,7.91004793,132.2,132.09,6.05689082]
[1726037054566,7.91004793,132.2,132.1,3.77999848]
[1726037054768,7.91004793,132.2,132.04,1.4175]
[1726037054968,7.91004793,132.2,132.05,6.05701193]
[1726037055174,338.0,132.19,132.06,6.05701193]
[1726037055358,338.0,132.19,132.05,3.79703232]
[1726037055560,338.0,132.19,132.07,6.05856981]
[1726037055767,338.0,132.19,132.08,6.05856981]
[1726037055975,338.0,132.19,132.09,6.05856981]
[1726037056274,338.0,132.19,132.1,9.76022095]
[1726037056474,338.0,132.19,132.05,1.343]
[1726037056679,338.0,132.19,132.06,6.05737534]
[1726037056871,338.0,132.19,132.07,6.05737534]
[1726037057172,338.0,132.19,132.1,3.7845]
[1726037058365,338.0,132.19,132.05,5.17371689]
[1726037058566,338.0,132.19,132.06,6.05262849]
[1726037058771,338.0,132.19,132.07,6.05262849]
[1726037058975,338.0,132.19,132.12,3.7841]
[1726037059173,7.91004793,132.2,132.12,7.47610832]
[1726037059970,7.91004793,132.2,132.12,3.69200832]
[1726037060271,7.91004793,132.2,132.05,6.47841689]
[1726037060467,7.91004793,132.2,132.11,3.7843]
[1726037060667,7.91004793,132.2,132.12,3.70184762]
[1726037068275,7.91004793,132.2,132.1,3.7847]
[1726037068573,7.91004793,132.2,132.05,6.47841689]
[1726037068974,7.91004793,132.2,132.09,3.7848]
[1726037069173,7.91004793,132.2,132.1,6.04941229]
[1726037069382,7.91004793,132.2,132.05,6.47841689]
[1726037069581,7.91004793,132.2,132.1,3.7847]
[1726037069880,7.91004793,132.2,132.05,6.47841689]
[1726037070087,7.91004793,132.2,132.1,3.7845]
[1726037072083,7.91004793,132.2,132.09,3.7849]
[1726037072476,7.91004793,132.2,132.1,6.05003026]
[1726037072775,7.91004793,132.2,132.09,3.7849]
[1726037072978,7.91004793,132.2,132.1,6.05007737]
[1726037073177,338.0,132.19,132.05,6.47841689]
[1726037073377,338.0,132.19,132.06,6.05029778]
[1726037073577,338.0,132.19,132.07,6.05029778]
[1726037073785,338.0,132.19,132.08,6.05029778]
[1726037074084,338.0,132.19,132.09,6.05029778]
[1726037074282,338.0,132.19,132.1,6.05029778]
[1726037074484,338.0,132.19,132.05,6.47841689]
[1726037074678,338.0,132.19,132.06,6.04951111]
[1726037075079,338.0,132.19,132.07,6.04951111]
[1726037075279,338.0,132.19,132.08,6.04951111]
[1726037075477,338.0,132.19,132.09,6.04951111]
[1726037075678,338.0,132.19,132.1,6.04951111]
[1726037075879,338.0,132.19,132.05,6.47841689]
[1726037076178,338.0,132.19,132.06,6.04933384]
[1726037076378,338.0,132.19,132.07,6.04933384]
[1726037076580,338.0,132.19,132.08,6.04933384]
[1726037076880,338.0,132.19,132.09,6.04933384]
[1726037077079,338.0,132.19,132.05,6.47841689]
[1726037077279,338.0,132.19,132.06,6.04975661]
[1726037077482,338.0,132.19,132.07,6.04975661]
[1726037077684,338.0,132.19,132.08,6.04975661]
[1726037077885,338.0,132.19,132.09,6.04975661]
[1726037078183,338.0,132.19,132.05,6.47841689]
[1726037078377,338.0,132.19,132.06,6.0494298]
[1726037078577,338.0,132.19,132.07,6.0494298]
[1726037078777,338.0,132.19,132.08,6.0494298]
[1726037078985,338.0,132.19,132.09,6.04967324]
[1726037079183,338.0,132.19,132.1,6.04967324]
[1726037079382,338.0,132.19,132.05,6.47841689]
[1726037079585,338.0,132.19,132.06,6.04962364]
[1726037079787,338.0,132.19,132.07,6.04962364]
[1726037080088,338.0,132.19,132.08,6.04962364]
[1726037080286,338.0,132.19,132.09,6.04962364]
[1726037080587,338.0,132.19,132.1,6.04962364]
[1726037080781,338.0,132.19,132.05,6.47841689]
[1726037080982,338.0,132.19,132.06,6.05083948]
[1726037081187,338.0,132.19,132.07,6.05083948]
[1726037081377,338.0,132.19,132.05,6.47841689]
[1726037081583,338.0,132.19,132.08,6.05188042]
[1726037081788,338.0,132.19,132.09,6.05188042]
[1726037081989,338.0,132.19,132.1,6.05188042]
[1726037082289,338.0,132.19,132.05,6.47841689]
[1726037082489,338.0,132.19,132.06,6.05211857]
[1726037082687,338.0,132.19,132.07,6.05211857]
[1726037082884,338.0,132.19,132.08,6.05211857]
[1726037083086,338.0,132.19,132.09,6.05211857]
[1726037083287,338.0,132.19,132.1,6.05211857]
[1726037083482,338.0,132.19,132.05,6.47841689]
[1726037083787,338.0,132.19,132.06,6.05145205]
[1726037083988,338.0,132.19,132.07,6.05145205]
[1726037084188,338.0,132.19,132.08,6.05145205]
[1726037084489,338.0,132.19,132.05,6.47841689]
[1726037084877,338.0,132.19,132.09,6.0516896]
[1726037085082,338.0,132.19,132.1,6.0516896]
[1726037085278,338.0,132.19,132.05,6.47841689]
[1726037085486,338.0,132.19,132.06,6.05173232]
[1726037085689,338.0,132.19,132.07,6.05173232]
[1726037085881,338.0,132.19,132.08,6.05173232]
[1726037086085,338.0,132.19,132.09,6.05173232]
[1726037086287,338.0,132.19,132.1,6.05173232]
[1726037086488,338.0,132.19,132.05,6.47841689]
[1726037086682,7.5651,132.18,132.06,6.05173143]
[1726037086883,7.5651,132.18,132.07,6.05173143]
[1726037087081,7.5651,132.18,132.08,6.05173143]
[1726037087387,3.7845,132.12,132.09,6.05173143]
[1726037087589,7.5651,132.18,132.1,6.05173143]
[1726037087792,3.7842,132.13,132.05,6.47841689]
[1726037087988,7.5651,132.18,132.06,6.05155589]
[1726037088292,7.5651,132.18,132.07,6.05155589]
[1726037088483,7.5651,132.18,132.08,6.05155589]
[1726037088680,7.5651,132.18,132.09,6.05155589]
[1726037088887,7.5651,132.18,132.1,6.05155589]
[1726037089084,7.5651,132.18,132.05,6.47841689]
[1726037089287,7.5651,132.18,132.06,6.05134042]
[1726037089587,7.5651,132.18,132.07,6.05134042]
[1726037089791,7.5651,132.18,132.08,6.05134042]
[1726037089991,7.5651,132.18,132.09,6.05132232]
[1726037090191,7.5651,132.18,132.1,6.05132232]
[1726037090393,7.5651,132.18,132.05,6.47841689]
[1726037090684,7.5651,132.18,132.06,6.05132232]
[1726037090890,7.5651,132.18,132.07,6.05132232]
[1726037091092,7.5651,132.18,132.08,6.05148382]
[1726037091295,7.5651,132.18,132.09,6.05148382]
[1726037091497,7.5651,132.18,132.1,6.05148382]
[1726037091696,7.5651,132.18,132.05,6.47841689]
[1726037091896,7.5651,132.18,132.06,6.05055461]
[1726037092088,7.5651,132.18,132.07,6.05055461]
[1726037092294,7.5651,132.18,132.08,6.05055461]
[1726037092496,7.5651,132.18,132.09,6.05055461]
[1726037092790,7.5651,132.18,132.1,6.05055461]
[1726037092996,7.5651,132.18,132.05,6.47841689]
[1726037093198,7.5651,132.18,132.06,6.05080077]
[1726037093398,7.5651,132.18,132.07,6.05080077]
[1726037093594,3.7844,132.12,132.08,6.05080077]
[1726037093893,7.5651,132.18,132.09,6.05080077]
[1726037094095,7.5651,132.18,132.1,6.05080077]
[1726037094291,3.7844,132.12,132.05,6.47841689]
[1726037094691,7.5651,132.18,132.06,6.05087431]
[1726037095900,3.7845,132.11,132.1,6.05087431]
[1726037097804,3.7845,132.11,132.05,6.47841689]
[1726037098005,3.7845,132.11,132.1,6.05104278]
[1726037100813,3.7843,132.12,132.1,6.05104278]
[1726037101014,7.5651,132.18,132.05,6.47841689]
[1726037101216,7.5651,132.18,132.06,6.05090929]
[1726037101512,7.5651,132.18,132.05,6.47841689]
[1726037101712,7.5651,132.18,132.06,6.05075608]
[1726037102009,3.7846,132.11,132.07,6.05075608]
[1726037102210,3.7846,132.11,132.08,6.05075608]
[1726037102419,3.7846,132.11,132.09,6.05075608]
[1726037102619,3.7846,132.11,132.1,6.05075608]
[1726037105016,7.5651,132.18,132.1,6.05075608]
[1726037105217,7.5651,132.18,132.11,6.05218096]
[1726037105418,7.5651,132.18,132.05,6.47841689]
[1726037105616,3.7842,132.13,132.06,6.05305345]
[1726037105818,3.7842,132.13,132.07,6.05305345]
[1726037106018,3.7842,132.13,132.08,6.05305345]
[1726037106219,3.7842,132.13,132.09,6.05305345]
[1726037106417,3.7842,132.13,132.1,6.05305345]
[1726037106725,3.7842,132.13,132.11,6.05366923]
[1726037106918,7.5651,132.18,132.05,6.47841689]
[1726037107118,7.5651,132.18,132.06,6.05461458]
[1726037107319,7.5651,132.18,132.07,6.05461458]
[1726037107527,3.7845,132.12,132.08,6.05461458]
[1726037107827,3.7845,132.12,132.09,6.05461458]
[1726037108027,3.7845,132.11,132.1,6.05461458]
[1726037111024,7.91004793,132.2,132.1,6.05461458]
[1726037111228,4.1469,132.2,132.11,6.05461458]
[1726037111529,4.1469,132.2,132.12,6.05461458]
[1726037111530,3.7832,132.16,132.12,6.05461458]
[1726037111832,4.1469,132.2,132.05,6.47841689]
[1726037111833,4.1469,132.2,132.13,3.69114307]
[1726037112130,4.1469,132.2,132.05,6.47841689]
[1726037112326,4.1469,132.2,132.06,6.05243143]
[1726037112515,4.1469,132.2,132.07,6.05243143]
[1726037112721,3.7841,132.13,132.08,6.05243143]
[1726037112922,3.7841,132.13,132.09,6.05243143]
[1726037113121,3.7841,132.13,132.05,6.47841689]
[1726037113325,3.7841,132.13,132.1,6.05080452]
[1726037113527,3.7841,132.13,132.11,6.05080452]
[1726037113720,3.7841,132.13,132.12,6.05080452]
[1726037115621,3.7845,132.11,132.05,6.47841689]
[1726037115828,3.7845,132.11,132.06,6.05350118]
[1726037116030,3.7845,132.11,132.05,6.47841689]
[1726037116031,3.7845,132.11,132.07,6.05350118]
[1726037116329,3.7845,132.11,132.08,6.05350118]
[1726037116530,3.7845,132.11,132.05,6.47841689]
[1726037116832,3.7845,132.11,132.09,6.05347627]
[1726037117031,3.7845,132.11,132.06,6.05347627]
[1726037117232,3.7845,132.11,132.07,6.05347627]
[1726037117529,3.7845,132.11,132.08,6.05347627]
[1726037117731,3.7845,132.11,132.09,6.05347627]
[1726037117928,3.7845,132.11,132.1,6.05347627]
[1726037120233,3.7845,132.11,132.05,6.47841689]
[1726037120735,3.7845,132.11,132.06,6.0532654]
[1726037120936,3.7845,132.11,132.07,6.0532654]
[1726037121138,3.7845,132.11,132.08,6.0532654]
[1726037121336,7.5648,132.19,132.09,6.0532654]
[1726037121637,7.5648,132.19,132.1,6.0532654]
[1726037121839,7.5648,132.19,132.11,6.0532654]
[1726037122039,7.5648,132.19,132.05,6.47841689]
[1726037122232,7.5648,132.19,132.06,6.05372865]
[1726037122541,7.5648,132.19,132.07,6.05372865]
[1726037122728,7.5651,132.18,132.08,6.05372865]
[1726037122929,7.5651,132.18,132.09,6.05372865]
[1726037123124,3.7847,132.11,132.1,6.05372865]
[1726037123839,3.7847,132.11,132.05,6.47841689]
[1726037124138,3.7847,132.11,132.1,6.05398363]
[1726037127244,3.7849,132.1,132.05,3.83071689]
[1726037127538,3.7849,132.1,132.06,6.05622496]
[1726037127738,3.7849,132.1,132.07,6.05622496]
[1726037128037,3.7849,132.1,132.08,6.05622496]
[1726037128226,3.7849,132.1,132.09,6.05622496]
[1726037130738,3.7851,132.09,132.08,3.86554621]
[1726037130939,3.7851,132.09,132.04,1.4175]
[1726037131231,3.7851,132.09,132.05,6.05642527]
[1726037131433,3.7851,132.09,132.06,6.05642527]
[1726037131739,3.7853,132.08,132.07,6.05642527]
[1726037132137,1.3023,132.11,131.99,4.0717]
[1726037132845,3.7858,132.07,131.99,4.0717]
[1726037133233,1.3023,132.11,131.99,4.0717]
[1726037133438,3.7854,132.08,131.99,4.0717]
[1726037134040,3.7857,132.07,131.99,4.0717]
[1726037134236,1.3023,132.11,131.99,4.0717]
[1726037134743,3.7858,132.07,131.99,4.0717]
[1726037135142,1.3023,132.11,131.99,4.0717]
[1726037135337,3.786,132.06,131.99,4.0717]
[1726037137346,3.7858,132.07,131.99,4.0717]
[1726037139842,3.7855,132.08,131.99,4.0717]
[1726037140540,3.7857,132.07,131.99,4.0717]
[1726037141046,1.3023,132.11,131.99,4.0717]
[1726037141346,3.786,132.06,131.99,4.0717]
[1726037142145,3.7862,132.05,131.99,4.0717]
[1726037143036,3.7861,132.06,131.99,4.0717]
[1726037144139,3.7861,132.06,132.0,5.92880596]
[1726037144344,3.7861,132.06,132.01,5.92880596]
[1726037144545,3.7861,132.06,132.02,5.92880596]
[1726037144742,3.7861,132.06,132.03,5.92880596]
[1726037144945,3.7862,132.05,132.04,5.92880596]
[1726037146151,3.7862,132.05,131.99,2.7644]
[1726037146648,3.7862,132.05,132.0,5.92816404]
[1726037146851,3.7862,132.05,132.01,5.92816404]
[1726037147050,3.7862,132.05,132.02,5.92816404]
[1726037147352,3.7862,132.05,132.03,5.92816404]
[1726037147542,3.7862,132.05,131.99,2.7644]
[1726037147742,3.7862,132.05,132.0,5.92769042]
[1726037147947,3.7862,132.05,132.01,5.92769042]
[1726037148144,3.7862,132.05,132.02,5.92769042]
[1726037148438,3.7862,132.05,132.03,5.92769042]
[1726037148651,3.7862,132.05,131.99,2.7644]
[1726037148950,3.7866,132.04,132.0,5.9286553]
[1726037149151,3.7866,132.04,132.01,5.9286553]
[1726037149356,3.7866,132.04,132.02,5.9286553]
[1726037149547,1.3023,132.11,131.99,2.7644]
[1726037149548,3.7864,132.05,131.99,2.7644]
[1726037149849,3.7864,132.05,132.03,5.927699]
[1726037150055,3.7864,132.05,131.99,2.7644]
[1726037150351,3.7864,132.05,132.0,5.92773353]
[1726037150551,3.7864,132.05,132.01,5.92773353]
[1726037150750,3.7864,132.05,132.02,5.92773353]
[1726037150950,3.7864,132.05,132.03,5.92773353]
[1726037151152,3.7864,132.05,131.99,2.7644]
[1726037151351,3.7865,132.04,132.0,5.92879875]
[1726037151554,3.7865,132.04,132.01,5.92879875]
[1726037151749,1.3023,132.11,132.02,5.92879875]
[1726037151951,3.7868,132.03,132.02,5.92879875]
[1726037152159,3.7868,132.03,131.99,5.92879875]
[1726037152357,3.7868,132.03,132.0,5.92879875]
[1726037152548,3.7866,132.04,132.01,5.92879875]
[1726037152747,7.5696,132.1,132.02,5.92879875]
[1726037152944,1.3023,132.11,132.01,5.92879875]
[1726037153153,3.7862,132.06,132.02,5.92879875]
[1726037153349,1.3023,132.11,132.0,3.74725441]
[1726037153553,1.3023,132.11,131.89,6.51128544]
[1726037153750,3.7861,132.06,132.01,5.92919206]
[1726037153957,3.7861,132.06,132.01,9.64037975]
[1726037154256,3.7861,132.06,132.02,5.92919206]
[1726037154454,3.7861,132.06,132.03,5.92919206]
[1726037154650,3.7861,132.06,132.02,3.77291459]
[1726037154843,3.7861,132.06,132.03,5.92721373]
[1726037155050,3.7861,132.06,132.02,3.7418618]
[1726037155249,3.7861,132.06,132.03,5.926937]
[1726037155449,3.7861,132.06,131.9,5.926937]
[1726037155655,3.7861,132.06,131.91,7.3186576]
[1726037155857,3.7861,132.06,131.92,5.926937]
[1726037156053,3.7861,132.06,131.93,9.9925576]
[1726037156253,3.7861,132.06,131.94,2.7216206]
[1726037156557,3.7861,132.06,131.95,5.9271501]
[1726037156759,3.7861,132.06,131.96,5.9271501]
[1726037156957,3.7861,132.06,131.97,7.2921501]
[1726037157161,3.7861,132.06,131.98,5.9271501]
[1726037157361,3.7861,132.06,131.99,5.9271501]
[1726037157555,3.7861,132.06,132.0,5.9271501]
[1726037157748,3.7857,132.07,132.01,5.9271501]
[1726037157953,3.7857,132.07,132.02,5.9271501]
[1726037158154,3.7857,132.07,132.03,5.9271501]
[1726037158356,3.7857,132.07,132.04,3.8002713]
[1726037158553,3.7857,132.07,132.01,5.9271501]
[1726037158750,3.7855,132.08,132.02,5.9271501]
[1726037158961,3.7855,132.08,132.03,5.9271501]
[1726037159161,3.7855,132.08,132.03,3.85782822]
[1726037159360,3.7855,132.08,132.01,5.9271501]
[1726037159662,3.7855,132.08,132.02,5.9271501]
[1726037159856,3.7855,132.08,132.03,5.9271501]
[1726037160055,1.3023,132.11,132.03,3.72122084]
[1726037160261,1.3023,132.11,132.01,5.9271501]
[1726037160461,1.3023,132.11,132.02,5.9271501]
[1726037160663,3.7861,132.06,132.03,5.9271501]
[1726037160961,3.7861,132.06,132.04,3.87382611]
[1726037161161,3.7861,132.06,132.01,5.9271501]
[1726037161363,1.3023,132.11,132.02,5.9271501]
[1726037161555,1.3023,132.11,131.99,1.3299]
[1726037161556,1.3023,132.11,132.03,5.9271501]
[1726037161752,1.3023,132.11,132.04,3.80793698]
[1726037161959,3.7862,132.06,132.01,5.9271501]
[1726037162158,1.3023,132.11,132.02,5.9271501]
[1726037162361,1.3023,132.11,132.0,5.9271501]
[1726037162654,1.3023,132.11,132.01,5.9271501]
[1726037162859,1.3023,132.11,132.0,5.9271501]
[1726037163062,1.3023,132.11,132.01,5.9271501]
[1726037163262,3.7867,132.04,132.0,5.9271501]
[1726037163458,3.7867,132.04,132.01,5.9271501]
[1726037163659,3.7867,132.04,132.0,5.9271501]
[1726037163860,3.7867,132.04,132.01,5.9271501]
[1726037164060,3.7867,132.04,132.0,5.9271501]
[1726037164260,3.7867,132.04,132.01,5.9271501]
[1726037164459,3.7867,132.04,132.0,5.9271501]
[1726037164659,3.7867,132.04,132.01,5.9271501]
[1726037164861,3.7864,132.05,131.99,1.3299]
[1726037165069,1.3023,132.11,132.0,5.92706774]
[1726037165266,1.3023,132.11,132.01,5.92706774]
[1726037165460,1.3023,132.11,132.0,5.92706774]
[1726037165661,1.3023,132.11,132.01,5.92706774]
[1726037165968,1.3023,132.11,132.0,5.92706774]